fUSD/lending_fUSD_20260313
["ID","MTS","AMOUNT","RATE_DAILY","PERIOD"]
[408333016,1773439882568,-172.316878,0.0004683,7]
[408333017,1773439882577,-2939.631736,0.0004683,7]
[408333018,1773439882587,-1489.45517,0.0004683,7]
[408333019,1773439882596,-894.90115531,0.00046836,30]
[408333020,1773439882606,-150.0,0.00046836,30]
[408333021,1773439882615,-894.90115531,0.00046836,30]
[408333022,1773439882625,-150.0,0.00046836,30]
[408333023,1773439882635,-1231.52483984,0.00046836,30]
[408333024,1773439882644,-150.0,0.00046836,30]
[408333025,1773439882653,-4992.64583417,0.00046836,30]
[408333026,1773439882663,-150.0,0.00046836,30]
[408333027,1773439882673,-153.4,0.00046868,120]
[408333028,1773439882682,-566.53559445,0.0004688,120]
[408333029,1773439882692,-211.52193992,0.0004689,19]
[408333030,1773439882701,-155.0,0.000469,120]
[408333031,1773439882710,-1429.1065,0.000469,2]
[408333032,1773439882719,-151.5,0.00046905,2]
[408333033,1773439882728,-151.5,0.00046921,2]
[408333034,1773439882737,-153.4,0.00046968,120]
[408333035,1773439882746,-156.6071307,0.00046984,2]
[408333036,1773439882757,-4758.89286308,0.00046985,120]
[408333037,1773439882767,-1025.34268021,0.00046988,120]
[408333038,1773439882776,-200000.0,0.0004699,30]
[408333039,1773439882789,-485.97,0.00046997,120]
[408333040,1773439882798,-3499.0,0.00047,120]
[408333041,1773439882807,-1000.0,0.00047,30]
[408333042,1773439882816,-100000.0,0.00047,60]
[408333043,1773439882827,-249.77090716,0.00047,120]
[408333044,1773439882837,-3000.0,0.00047,120]
[408333045,1773439882846,-3102.62695953,0.00047,120]
[408333046,1773439882859,-259.226453,0.00047,60]
[408333047,1773439882868,-10000.0,0.00047,4]
[408333048,1773439882877,-250.0,0.00047,120]
[408333049,1773439882887,-137742.73,0.00047,14]
[408333050,1773439882898,-500000.0,0.00047,30]
[408333051,1773439882908,-2272.3,0.00047,30]
[408333052,1773439882917,-100000.0,0.00047,9]
[408333053,1773439882927,-5772.75,0.00047,30]
[408333054,1773439882936,-1888.35920065,0.00047,10]
[408333055,1773439882945,-1045.2,0.00047014,120]
[408333056,1773439882955,-153.4,0.00047068,120]
[408333057,1773439882964,-152.0,0.00047068,27]
[408333058,1773439882974,-151.5,0.00047101,2]
[408333059,1773439882984,-506.805565,0.00047123,30]
[408333060,1773439882993,-1658.46,0.00047123,2]
[408333061,1773439883003,-1658.46,0.00047123,2]
[408333062,1773439883013,-1658.46,0.00047123,2]
[408333063,1773439883023,-1658.46,0.00047123,2]
[408333064,1773439883033,-1658.46,0.00047123,2]
[408333065,1773439883042,-1658.46,0.00047123,2]
[408333066,1773439883053,-1658.46,0.00047123,2]
[408333067,1773439883062,-1658.46,0.00047123,2]
[408333068,1773439883071,-1658.46,0.00047123,2]
[408333069,1773439883081,-1658.46,0.00047123,2]
[408333070,1773439883090,-1658.46,0.00047123,2]
[408333071,1773439883100,-1658.46,0.00047123,2]
[408333072,1773439883109,-1658.46,0.00047123,2]
[408333073,1773439883118,-1658.46,0.00047123,2]
[408333074,1773439883127,-1658.46,0.00047123,2]
[408333075,1773439883136,-1658.46,0.00047123,2]
[408333076,1773439883146,-1658.46,0.00047123,2]
[408333077,1773439883155,-1658.46,0.00047123,2]
[408333078,1773439883164,-1658.46,0.00047123,2]
[408333079,1773439883174,-1658.46,0.00047123,2]
[408333080,1773439883184,-1658.46,0.00047123,2]
[408333081,1773439883193,-1658.46,0.00047123,2]
[408333082,1773439883203,-1658.46,0.00047123,2]
[408333083,1773439883212,-1658.49830242,0.00047123,2]
[408333084,1773439883221,-500.0,0.00047123,2]
[408333085,1773439883230,-500.0,0.00047123,2]
[408333086,1773439883241,-500.0,0.00047123,2]
[408333087,1773439883251,-500.0,0.00047123,2]
[408333088,1773439883260,-500.0,0.00047123,2]
[408333089,1773439883269,-500.0,0.00047123,2]
[408333090,1773439883279,-569.39434785,0.00047123,2]
[408333091,1773439883288,-500.0,0.00047123,2]
[408333092,1773439883298,-500.0,0.00047123,2]
[408333093,1773439883307,-500.0,0.00047123,2]
[408333094,1773439883316,-500.0,0.00047123,2]
[408333095,1773439883325,-500.0,0.00047123,2]
[408333096,1773439883335,-500.0,0.00047123,2]
[408333097,1773439883344,-500.0,0.00047123,2]
[408333098,1773439883353,-500.0,0.00047123,2]
[408333099,1773439883363,-500.0,0.00047123,2]
[408333100,1773439883373,-500.0,0.00047123,2]
[408333101,1773439883382,-500.0,0.00047123,2]
[408333102,1773439883392,-500.0,0.00047123,2]
[408333103,1773439883401,-500.0,0.00047123,2]
[408333104,1773439883411,-500.0,0.00047123,2]
[408333105,1773439883420,-500.0,0.00047123,2]
[408333106,1773439883429,-500.0,0.00047123,2]
[408333107,1773439883439,-500.0,0.00047123,2]
[408333108,1773439883448,-500.0,0.00047123,2]
[408333109,1773439883458,-500.0,0.00047123,2]
[408333110,1773439883467,-507.19005053,0.00047123,2]
[408333111,1773439883477,-500.0,0.00047123,2]
[408333112,1773439883486,-301.33071612,0.00047123,2]
[408333113,1773439883496,-566.7,0.00047123,2]
[408333114,1773439883506,-566.7,0.00047123,2]
[408333115,1773439883517,-566.7,0.00047123,2]
[408333116,1773439883527,-566.7,0.00047123,2]
[408333117,1773439883537,-566.7,0.00047123,2]
[408333118,1773439883547,-566.7,0.00047123,2]
[408333119,1773439883558,-566.7,0.00047123,2]
[408333120,1773439883568,-566.7,0.00047123,2]
[408333121,1773439883579,-566.7,0.00047123,2]
[408333122,1773439883589,-566.7,0.00047123,2]
[408333123,1773439883599,-566.7,0.00047123,2]
[408333124,1773439883608,-566.7,0.00047123,2]
[408333125,1773439883618,-566.7,0.00047123,2]
[408333126,1773439883627,-566.7,0.00047123,2]
[408333127,1773439883636,-566.7,0.00047123,2]
[408333128,1773439883646,-566.7,0.00047123,2]
[408333129,1773439883655,-566.7,0.00047123,2]
[408333130,1773439883664,-566.7,0.00047123,2]
[408333131,1773439883674,-566.7,0.00047123,2]
[408333132,1773439883683,-566.7,0.00047123,2]
[408333133,1773439883692,-566.7,0.00047123,2]
[408333134,1773439883701,-566.7,0.00047123,2]
[408333135,1773439883710,-566.7,0.00047123,2]
[408333136,1773439883719,-566.9110077,0.00047123,2]
[408333137,1773439883728,-497.59210052,0.00047123,2]
[408333138,1773439883825,-500.0,0.00047123,2]
[408333139,1773439883834,-530.09612017,0.00047123,2]
[408333140,1773439883844,-3122.76,0.00047123,120]
[408333141,1773439883853,-505.0,0.00047132,21]
[408333142,1773439883863,-54314.83674005,0.0004715,120]
[408333143,1773439883872,-153.4,0.00047168,120]
[408333144,1773439883881,-1699.692,0.000472,2]
[408333145,1773439883891,-151.5,0.00047232,2]
[408333146,1773439883900,-156.6071307,0.00047258,2]
[408333147,1773439883909,-153.4,0.00047268,120]
[408333148,1773439883919,-151.5,0.00047299,2]
[408333149,1773439883928,-485.97,0.00047306,120]
[408333150,1773439883937,-1540.78,0.0004731,120]
[408333151,1773439883947,-500.0,0.00047315,30]
[408333152,1773439883956,-150.0,0.00047337,120]
[408333153,1773439883965,-153.4,0.00047368,120]
[408333154,1773439883974,-151.5,0.00047427,2]
[408333155,1773439883983,-2177195.90918588,0.0004745,2]
[408333156,1773439883992,-96000.0,0.0004745,120]
[408333157,1773439884002,-20076.79388603,0.0004745,3]
[408333158,1773439884012,-25115.22312733,0.0004745,5]
[408333159,1773439884021,-8121.52457832,0.0004745,5]
[408333160,1773439884030,-153.4,0.00047468,120]
[408333161,1773439884039,-306.95249498,0.00047471,100]
[408333162,1773439884048,-50000.0,0.000475,54]
[408333163,1773439884057,-50000.0,0.000475,55]
[408333164,1773439884067,-50000.0,0.000475,46]
[408333165,1773439884076,-50000.0,0.000475,47]
[408333166,1773439884085,-100000.0,0.000475,60]
[408333167,1773439884095,-5000000.0,0.000475,120]
[408333168,1773439884104,-5000000.0,0.000475,120]
[408333169,1773439884113,-5000000.0,0.000475,120]
[408333170,1773439884122,-5000000.0,0.000475,120]
[408333171,1773439884131,-155.92,0.000475,120]
[408333172,1773439884140,-2021.5099,0.000475,2]
[408333173,1773439884150,-200000.0,0.000475,30]
[408333174,1773439884159,-175.32047108,0.000475,120]
[408333175,1773439884168,-100000.0,0.000475,10]
[408333176,1773439884177,-100000.0,0.000475,11]
[408333177,1773439884187,-1284.45184322,0.000475,30]
[408333178,1773439884196,-27545.9880659,0.000475,30]
[408333179,1773439884205,-27545.9880659,0.000475,30]
[408333180,1773439884214,-531.7077983,0.000475,30]
[408333181,1773439884224,-156.6071307,0.00047532,2]
[408333182,1773439884233,-3122.76,0.00047534,120]
[408333183,1773439884243,-317.19,0.00047545,120]
[408333184,1773439884252,-219.47377279,0.00047564,4]
[408333185,1773439884261,-153.48447049,0.00047568,120]
[408333186,1773439884271,-151.5,0.00047582,2]
[408333187,1773439884281,-500.0,0.00047589,30]
[408333188,1773439884290,-5299.70432385,0.000476,2]
[408333189,1773439884300,-377.8604,0.000476,120]
[408333190,1773439884310,-221.22322327,0.000476,90]
[408333191,1773439884320,-226.92207526,0.000476,120]
[408333192,1773439884331,-171.32762305,0.000476,90]
[408333193,1773439884341,-4804.46518859,0.000476,30]
[408333194,1773439884351,-150.0,0.00047602,120]
[408333195,1773439884360,-157.02,0.00047603,30]
[408333196,1773439884369,-485.97,0.00047615,120]
[408333197,1773439884378,-70520.28697957,0.00047661,120]
[408333198,1773439884388,-217.80954863,0.00047678,120]
[408333199,1773439884397,-218.62208298,0.00047678,120]
[408333200,1773439884406,-17855.4136003,0.0004768,120]
[408333201,1773439884418,-990131.65,0.0004769,120]
[408333202,1773439884429,-10215.19,0.0004769,120]
[408333203,1773439884440,-29888.0,0.000477,60]
[408333204,1773439884450,-193.72745009,0.0004773,60]
[408333205,1773439884459,-151.5,0.00047752,2]
[408333206,1773439884469,-150.0,0.00047754,120]
[408333207,1773439884486,-183.53877835,0.00047762,120]
[408333208,1773439884501,-300.0,0.0004777,3]
[408333209,1773439884520,-300.0,0.0004777,3]
[408333210,1773439884540,-400.0,0.0004777,3]
[408333211,1773439884554,-400.0,0.0004777,3]
[408333212,1773439884571,-6845.821954,0.000478,120]
[408333213,1773439884588,-2404.2605,0.000478,2]
[408333214,1773439884605,-1322.0,0.000478,5]
[408333215,1773439884624,-30045.79,0.00047802,120]
[408333216,1773439884640,-263.36852735,0.00047803,5]
[408333217,1773439884658,-156.6071307,0.00047806,2]
[408333218,1773439884673,-152.0,0.00047817,28]
[408333219,1773439884686,-500.0,0.0004782,30]
[408333220,1773439884704,-250.0,0.0004782,30]
[408333221,1773439884717,-500.0,0.0004782,30]
[408333222,1773439884732,-500.0,0.0004782,31]
[408333223,1773439884746,-250.0,0.0004782,31]
[408333224,1773439884761,-500.0,0.0004782,31]
[408333225,1773439884774,-500.0,0.0004782,30]
[408333226,1773439884792,-500.0,0.0004782,30]
[408333227,1773439884806,-500.0,0.0004782,31]
[408333228,1773439884820,-500.0,0.0004782,31]
[408333229,1773439884835,-250.0,0.0004782,30]
[408333230,1773439884850,-500.0,0.0004782,30]
[408333231,1773439884865,-250.0,0.0004782,31]
[408333232,1773439884880,-500.0,0.0004782,31]
[408333233,1773439884894,-1500.0,0.0004782,30]
[408333234,1773439884909,-1500.0,0.0004782,31]
[408333235,1773439884924,-151.0,0.0004782,30]
[408333236,1773439884939,-151.0,0.0004782,31]
[408333237,1773439884954,-151.0,0.0004782,30]
[408333238,1773439884968,-151.0,0.0004782,31]
[408333239,1773439884983,-250.0,0.0004782,30]
[408333240,1773439884998,-250.0,0.0004782,31]
[408333241,1773439885013,-500.0,0.0004782,30]
[408333242,1773439885027,-500.0,0.0004782,31]
[408333243,1773439885042,-1500.0,0.00047821,30]
[408333244,1773439885055,-500.0,0.00047827,30]
[408333245,1773439885070,-500.0,0.00047827,30]
[408333246,1773439885084,-799.82360106,0.00047827,30]
[408333247,1773439885099,-250.0,0.00047827,30]
[408333248,1773439885113,-200.0,0.00047827,30]
[408333249,1773439885128,-500.0,0.00047827,31]
[408333250,1773439885141,-500.0,0.00047827,31]
[408333251,1773439885155,-250.0,0.00047827,31]
[408333252,1773439885169,-200.0,0.00047827,31]
[408333253,1773439885184,-500.0,0.00047827,60]
[408333254,1773439885197,-500.0,0.00047827,60]
[408333255,1773439885212,-250.0,0.00047827,60]
[408333256,1773439885226,-211.47815259,0.00047827,60]
[408333257,1773439885240,-500.0,0.00047827,90]
[408333258,1773439885254,-250.0,0.00047827,90]
[408333259,1773439885268,-500.0,0.00047827,90]
[408333260,1773439885282,-500.0,0.00047827,120]
[408333261,1773439885296,-250.0,0.00047827,120]
[408333262,1773439885310,-500.0,0.00047827,30]
[408333263,1773439885325,-500.0,0.00047827,120]
[408333264,1773439885339,-500.0,0.00047827,30]
[408333265,1773439885353,-500.0,0.00047827,31]
[408333266,1773439885367,-500.0,0.00047827,31]
[408333267,1773439885384,-500.0,0.00047827,60]
[408333268,1773439885398,-500.0,0.00047827,60]
[408333269,1773439885414,-500.0,0.00047827,90]
[408333270,1773439885428,-500.0,0.00047827,90]
[408333271,1773439885443,-500.0,0.00047827,120]
[408333272,1773439885457,-250.0,0.00047827,30]
[408333273,1773439885472,-500.0,0.00047827,120]
[408333274,1773439885606,-500.0,0.00047827,30]
[408333275,1773439885616,-250.0,0.00047827,31]
[408333276,1773439885626,-500.0,0.00047827,31]
[408333277,1773439885636,-1500.0,0.00047827,30]
[408333278,1773439885647,-500.0,0.00047827,30]
[408333279,1773439885657,-250.0,0.00047827,60]
[408333280,1773439885666,-500.0,0.00047827,60]
[408333281,1773439885677,-1500.0,0.00047827,31]
[408333282,1773439885687,-500.0,0.00047827,31]
[408333283,1773439885697,-250.0,0.00047827,90]
[408333284,1773439885708,-500.0,0.00047827,90]
[408333285,1773439885719,-500.0,0.00047827,60]
[408333286,1773439885729,-1500.0,0.00047827,60]
[408333287,1773439885738,-250.0,0.00047827,120]
[408333288,1773439885749,-500.0,0.00047827,120]
[408333289,1773439885758,-176.80585651,0.00047827,90]
[408333290,1773439885768,-1500.0,0.00047827,90]
[408333291,1773439885778,-537.6845,0.00047827,30]
[408333292,1773439885791,-1500.0,0.00047827,120]
[408333293,1773439885801,-557.5788265,0.00047827,31]
[408333294,1773439885811,-151.0,0.00047827,30]
[408333295,1773439885823,-151.0,0.00047827,31]
[408333296,1773439885833,-151.0,0.00047827,60]
[408333297,1773439885844,-151.0,0.00047827,90]
[408333298,1773439885856,-151.0,0.00047827,120]
[408333299,1773439885865,-1000.0,0.00047827,30]
[408333300,1773439885875,-151.0,0.00047827,30]
[408333301,1773439885884,-500.0,0.00047827,120]
[408333302,1773439885893,-500.0,0.00047827,120]
[408333303,1773439885903,-605.32313053,0.00047827,31]
[408333304,1773439885912,-640.20183172,0.00047827,120]
[408333305,1773439885922,-150.0,0.00047827,2]
[408333306,1773439885931,-162.380719,0.00047827,30]
[408333307,1773439885941,-151.0,0.00047827,31]
[408333308,1773439885950,-168.3888056,0.00047827,31]
[408333309,1773439885959,-151.0,0.00047827,60]
[408333310,1773439885968,-250.0,0.00047827,30]
[408333311,1773439885978,-151.0,0.00047827,90]
[408333312,1773439885987,-250.0,0.00047827,31]
[408333313,1773439885997,-10000.0,0.00047827,30]
[408333314,1773439886007,-151.0,0.00047827,120]
[408333315,1773439886016,-250.0,0.00047827,60]
[408333316,1773439886026,-456.27759698,0.00047827,31]
[408333317,1773439886035,-250.0,0.00047827,90]
[408333318,1773439886044,-250.0,0.00047827,120]
[408333319,1773439886053,-500.0,0.00047827,30]
[408333320,1773439886063,-190.66085571,0.00047827,30]
[408333321,1773439886072,-500.0,0.00047827,30]
[408333322,1773439886082,-178.61835498,0.00047827,30]
[408333323,1773439886091,-500.0,0.00047827,31]
[408333324,1773439886100,-500.0,0.00047827,31]
[408333325,1773439886109,-500.0,0.00047827,60]
[408333326,1773439886118,-500.0,0.00047827,90]
[408333327,1773439886127,-500.0,0.00047827,120]
[408333328,1773439886136,-500.0,0.00047827,120]
[408333329,1773439886146,-500.0,0.00047827,120]
[408333330,1773439886155,-500.0,0.00047827,120]
[408333331,1773439886164,-500.0,0.00047827,120]
[408333332,1773439886174,-500.0,0.00047827,120]
[408333333,1773439886183,-500.0,0.00047827,120]
[408333334,1773439886192,-500.0,0.00047827,120]
[408333335,1773439886202,-500.0,0.00047827,120]
[408333336,1773439886212,-500.0,0.00047827,120]
[408333337,1773439886222,-500.0,0.00047827,120]
[408333338,1773439886231,-500.0,0.00047827,120]
[408333339,1773439886240,-500.0,0.00047827,120]
[408333340,1773439886250,-500.0,0.00047827,120]
[408333341,1773439886259,-500.0,0.00047827,120]
[408333342,1773439886269,-500.0,0.00047827,120]
[408333343,1773439886278,-500.0,0.00047827,120]
[408333344,1773439886288,-500.0,0.00047827,120]
[408333345,1773439886297,-500.0,0.00047827,120]
[408333346,1773439886307,-500.0,0.00047827,120]
[408333347,1773439886316,-485.86504114,0.00047827,120]
[408333348,1773439886325,-1110.0,0.00047828,30]
[408333349,1773439886334,-150.0,0.00047828,2]
[408333350,1773439886343,-152.85555596,0.00047828,30]
[408333351,1773439886352,-218.34613674,0.00047828,30]
[408333352,1773439886362,-192.44874172,0.00047828,30]
[408333353,1773439886371,-167.94903218,0.00047828,30]
[408333354,1773439886380,-210.00938427,0.00047828,30]
[408333355,1773439886389,-239.57278291,0.00047828,30]
[408333356,1773439886398,-261.21716102,0.00047828,30]
[408333357,1773439886408,-163.68020431,0.00047828,30]
[408333358,1773439886417,-243.37367256,0.00047828,30]
[408333359,1773439886426,-155.36642751,0.00047828,30]
[408333360,1773439886435,-152.04818729,0.00047828,30]
[408333361,1773439886444,-154.18436602,0.00047828,30]
[408333362,1773439886453,-151.37767931,0.00047828,30]
[408333363,1773439886463,-269.73448648,0.00047828,30]
[408333364,1773439886472,-156.82141829,0.00047828,30]
[408333365,1773439886481,-531.7077983,0.00047829,30]
[408333366,1773439886490,-150.0,0.0004783,2]
[408333367,1773439886499,-20000.0,0.0004783,2]
[408333368,1773439886509,-206415.38290881,0.0004783,2]
[408333369,1773439886518,-124703.16298918,0.0004783,2]
[408333370,1773439886529,-6191.55345927,0.0004783,2]
[408333371,1773439886537,-2862.51968966,0.0004783,2]
[408333372,1773439886546,-5299.82248174,0.0004783,2]
[408333373,1773439886555,-2508.65702896,0.0004783,2]
[408333374,1773439886564,-2762.37233236,0.0004783,2]
[408333375,1773439886572,-220999.41168007,0.0004783,2]
[408333376,1773439886581,-9435.54095204,0.0004783,2]
[408333377,1773439886589,-3493.89920499,0.0004783,2]
[408333378,1773439886598,-2243.82938819,0.0004783,2]
[408333379,1773439886607,-23384.77810386,0.0004783,2]
[408333380,1773439886616,-13109.40148249,0.0004783,2]
[408333381,1773439886625,-19688.54097095,0.0004783,5]
[408333382,1773439886634,-812713.14582059,0.0004783,2]
[408333383,1773439886642,-3310.63492728,0.0004783,2]
[408333384,1773439886651,-7430.42941439,0.0004783,2]
[408333385,1773439886660,-10935.10078358,0.0004783,2]
[408333386,1773439886668,-173762.4503017,0.0004783,2]
[408333387,1773439886677,-15261.2494012,0.0004783,2]
[408333388,1773439886686,-6000.0,0.0004783,2]
[408333389,1773439886695,-5257.08362064,0.0004783,2]
[408333390,1773439886704,-7956.86649174,0.0004783,2]
[408333391,1773439886713,-2500.0,0.0004783,2]
[408333392,1773439886721,-3906.8635555,0.0004783,2]
[408333393,1773439886730,-107315.89486865,0.0004783,2]
[408333394,1773439886739,-2250.81184553,0.0004783,2]
[408333395,1773439886747,-100453.55993984,0.0004783,2]
[408333396,1773439886756,-12504.25286832,0.0004783,2]
[408333397,1773439886765,-15122.56676451,0.0004783,2]
[408333398,1773439886775,-20735.17421251,0.0004783,2]
[408333399,1773439886787,-2491.37676138,0.0004783,2]
[408333400,1773439886799,-5813.40094817,0.0004783,2]
[408333401,1773439886808,-12915.0726353,0.0004783,2]
[408333402,1773439886817,-20000.0,0.0004783,2]
[408333403,1773439886826,-200.0,0.0004783,2]
[408333404,1773439886836,-400.0,0.0004783,7]
[408333405,1773439886845,-4364.09935097,0.0004783,2]
[408333406,1773439886854,-153.0,0.0004783,3]
[408333407,1773439886862,-169.57045731,0.0004783,3]
[408333408,1773439886871,-29990.0,0.0004783,7]
[408333409,1773439886880,-35121.11564155,0.0004783,14]
[408333410,1773439886890,-500.0,0.0004783,120]
[408333411,1773439886899,-173.39638857,0.0004783,120]
[408333412,1773439886908,-303.20418148,0.0004783,60]
[408333413,1773439886918,-1000.0,0.0004783,30]
[408333414,1773439886927,-12721.999999,0.0004783,120]
[408333415,1773439887027,-50000.0,0.0004783,51]
[408333416,1773439887036,-50000.0,0.0004783,52]
[408333417,1773439887045,-48000.0,0.0004783,30]
[408333418,1773439887054,-279.86,0.0004783,120]
[408333419,1773439887064,-700.87264205,0.0004783,90]
[408333420,1773439887073,-251.30478334,0.0004783,30]
[408333421,1773439887082,-172.55485305,0.0004783,120]
[408333422,1773439887091,-292.80352522,0.0004783,30]
[408333423,1773439887100,-160.22022085,0.0004783,120]
[408333424,1773439887109,-176.0864443,0.0004783,120]
[408333425,1773439887118,-206.50913107,0.0004783,90]
[408333426,1773439887127,-326.76048309,0.0004783,120]
[408333427,1773439887136,-184.26401726,0.0004783,60]
[408333428,1773439887145,-588.47139973,0.0004783,120]
[408333429,1773439887155,-742.61177063,0.0004783,30]
[408333430,1773439887164,-500.0,0.0004783,30]
[408333431,1773439887173,-2821.0,0.0004783,30]
[408333432,1773439887182,-2821.0,0.0004783,30]
[408333433,1773439887191,-500.0,0.0004783,30]
[408333434,1773439887200,-500.0,0.0004783,30]
[408333435,1773439887209,-500.0,0.0004783,30]
[408333436,1773439887218,-500.0,0.0004783,30]
[408333437,1773439887227,-500.0,0.0004783,30]
[408333438,1773439887237,-283.02049757,0.0004783,30]
[408333439,1773439887246,-847.96701044,0.0004783,120]
[408333440,1773439887255,-31432.80762807,0.0004783,30]
[408333441,1773439887264,-963.34585908,0.0004783,31]
[408333442,1773439887274,-1934.2976881,0.0004783,30]
[408333443,1773439887283,-169.25454884,0.0004783,120]
[408333444,1773439887292,-208.60517838,0.0004783,120]
[408333445,1773439887301,-270.16537046,0.0004783,120]
[408333446,1773439887310,-1769.50913179,0.0004783,120]
[408333447,1773439887319,-1207.37597906,0.0004783,60]
[408333448,1773439887328,-295.44290053,0.0004783,30]
[408333449,1773439887337,-8291.21732453,0.0004783,30]
[408333450,1773439887346,-184.56298725,0.0004783,30]
[408333451,1773439887355,-258.06119494,0.0004783,120]
[408333452,1773439887364,-318.52098824,0.0004783,120]
[408333453,1773439887373,-1642.17977993,0.0004783,30]
[408333454,1773439887382,-152.72870203,0.0004783,120]
[408333455,1773439887391,-156.16809462,0.0004783,30]
[408333456,1773439887399,-919.20337758,0.0004783,30]
[408333457,1773439887408,-605.89445299,0.0004783,30]
[408333458,1773439887418,-537.92093958,0.0004783,120]
[408333459,1773439887426,-1226.02125677,0.0004783,60]
[408333460,1773439887435,-1003.54802066,0.0004783,120]
[408333461,1773439887444,-20000.0,0.0004783,120]
[408333462,1773439887454,-20000.0,0.0004783,60]
[408333463,1773439887463,-23190.20433723,0.0004783,30]
[408333464,1773439887473,-153.17,0.0004783,2]
[408333465,1773439887483,-651.849791,0.0004783,120]
[408333466,1773439887494,-1131.74508113,0.0004783,120]
[408333467,1773439887504,-14763.0,0.0004783,30]
[408333468,1773439887513,-917.09899474,0.0004783,120]
[408333469,1773439887522,-430.12416655,0.0004783,120]
[408333470,1773439887533,-7980.12397975,0.0004783,2]
[408333471,1773439887542,-312.29,0.0004783,2]
[408333472,1773439887551,-50000.0,0.0004783,53]
[408333473,1773439887561,-650.67465591,0.0004783,2]
[408333474,1773439887570,-43779.27,0.0004783,120]
[408333475,1773439887580,-30026.04625827,0.0004783,120]
[408333476,1773439887591,-299.07691385,0.0004783,120]
[408333477,1773439887602,-45571.98,0.0004783,30]
[408333478,1773439887611,-178.85985,0.0004783,60]
[408333479,1773439887620,-25213.82546941,0.0004783,30]
[408333480,1773439887631,-198.49848,0.0004783,45]
[408333481,1773439887642,-200.0,0.0004783,30]
[408333482,1773439887651,-500.0,0.0004783,120]
[408333483,1773439887662,-20000.0,0.0004783,10]
[408333484,1773439887671,-8631.39555561,0.0004783,7]
[408333485,1773439887681,-50000.0,0.0004783,54]
[408333486,1773439887691,-71010.0,0.0004783,10]
[408333487,1773439887702,-316.0,0.0004783,30]
[408333488,1773439887711,-246.68,0.0004783,120]
[408333489,1773439887721,-549.59746256,0.0004783,120]
[408333490,1773439887730,-30964.45005513,0.0004783,45]
[408333491,1773439887740,-9069.99014495,0.0004783,120]
[408333492,1773439887750,-248.999999,0.0004783,2]
[408333493,1773439887760,-40000.0,0.0004783,30]
[408333494,1773439887769,-1086.842955,0.0004783,120]
[408333495,1773439887781,-1003.45460242,0.0004783,2]
[408333496,1773439887796,-500.0,0.0004783,30]
[408333497,1773439887805,-5543.68473215,0.0004783,120]
[408333498,1773439887814,-437.29036353,0.0004783,120]
[408333499,1773439887825,-6008.98870197,0.0004783,3]
[408333500,1773439887833,-7378.29932849,0.0004783,120]
[408333501,1773439887843,-150.0,0.0004783,2]
[408333502,1773439887853,-18891.11490558,0.0004783,30]
[408333503,1773439887862,-1000.0,0.0004783,120]
[408333504,1773439887871,-1000.0,0.0004783,120]
[408333505,1773439887880,-399.52404538,0.0004783,2]
[408333506,1773439887889,-581.14417997,0.0004783,5]
[408333507,1773439887899,-1635.24213307,0.0004783,10]
[408333508,1773439887908,-1210.0,0.0004783,2]
[408333509,1773439887917,-718.29317435,0.0004783,2]
[408333510,1773439887926,-2045.57619535,0.0004783,5]
[408333511,1773439887936,-735.63670235,0.0004783,10]
[408333512,1773439887946,-355.89584972,0.0004783,2]
[408333513,1773439887956,-178.76644004,0.0004783,7]
[408333514,1773439887965,-643.34512428,0.0004783,6]
[408333515,1773439887975,-421.10345243,0.0004783,7]